Cogmind - Beta 15 @@@ ROGUE MODE // 2025.10.19 @ 13:44:20 Player: TapeIsSticky Result: Self-destructed Performance ------------- Evolutions (0) 0 Regions Visited (3) 600 Robots Destroyed (29) 145 Value Destroyed (540) 540 Prototype IDs (6) 120 Alien Tech Used (0) 0 Bonus (300) 300 TOTAL SCORE: 1705 Bonus ------- Registered with UFD 300 Cogmind --------- Core Integrity 42/250 Matter 300/300 Energy 100/100 System Corruption 0% Temperature Cool (0) Movement Treading (160) Location -7/Scraptown Parts ------- > --- POWER (1) -------- (None) > --- PROPULSION (2) --- Light Treads Light Treads > --- UTILITY (2) ------ (None) > --- WEAPON (2) ------- (None) > --- INVENTORY (5) ---- Surveybot 17 Chip Mapping Drone Bay (3/3) Peak State ------------ > --- POWER ------------ Ion Engine > --- PROPULSION ------- Light Treads Light Treads > --- UTILITY ---------- Huge Storage Unit Seismic Detector > --- WEAPON ----------- Assault Rifle Assault Rifle > --- INVENTORY -------- Ion Engine Improved Ion Engine Light Nuclear Core Light Treads Advanced Treads Compact Wheel Armored Huge Wheel Large Storage Unit Medium Matter Pod High-capacity Matter Pod Improved Sensor Array Seismic Detector Improved Targeting Computer Kinecellerator Transmission Jammer Medium Armor Plating Medium Laser Medium Laser Medium Laser Heavy Plasma Cannon Heavy Assault Rifle Grenade Launcher Multitool [Rating: 12] Favorites ----------- Power Ion Engine Engine Ion Engine Propulsion Light Treads Treads Light Treads Utility Seismic Detector Device Seismic Detector Storage Huge Storage Unit Weapon Assault Rifle Energy Gun Medium Laser Ballistic Gun Assault Rifle Launcher Grenade Launcher Special Weapon Multitool Build | -11 -10 -10 -7 ------- Run | Yrd Mat Sub Scr Slots Evolved . | . . . . Power . | . . . . Propulsion . | . . . . Utility . | . . . . Weapon . | . . . . Parts Attached 19 | 7 6 5 1 Power 3 | 1 2 . . Engine 3 | 1 2 . . Core . | . . . . Reactor . | . . . . Propulsion 4 | 2 1 1 . Treads 4 | 2 1 1 . Leg . | . . . . Wheel . | . . . . Hover . | . . . . Flight . | . . . . Utility 5 | 2 2 . 1 Device 1 | 1 . . . Storage 4 | 1 2 . 1 Processor . | . . . . Hackware . | . . . . Protection . | . . . . Artifact . | . . . . Weapon 7 | 2 1 4 . Energy Gun 1 | . 1 . . Energy Cannon . | . . . . Ballistic Gun 4 | 2 . 2 . Ballistic Cannon . | . . . . Launcher 1 | . . 1 . Special Weapon 1 | . . 1 . Impact Weapon . | . . . . Slashing Weapon . | . . . . Piercing Weapon . | . . . . Special Melee Weapon . | . . . . Unidentified Prototypes . | . . . . Parts Lost 3 | . 1 2 . Power . | . . . . Propulsion 1 | . . 1 . Utility . | . . . . Weapon 2 | . 1 1 . Highest Loss Streak 1 | . 1 1 . To Critical Strikes . | . . . . Average Backups 16 | 2 11 14 19 Power 2 | . 1 2 2 Propulsion 2 | . 1 2 3 Utility 6 | . 5 5 7 Weapon 4 | . 2 4 4 Tool/Special . | . . . . Unused Backups 22 | . 2 . 20 Power 3 | . . . 3 Propulsion 3 | . . . 3 Utility 12 | . 2 . 10 Weapon 4 | . . . 4 Tool/Special . | . . . . Average Slot Usage (%) 94 | . 99 100 90 Engine 13 | . 14 14 12 Treads 27 | . 27 28 28 Device 13 | . 14 14 12 Storage 13 | . 14 14 12 Energy Gun 4 | . 12 6 . Ballistic Gun 21 | . 15 20 24 Peak Build Rating 12 | 7 8 9 12 Average Rating 9 | 5 7 8 10 On Entrance 5 | . 7 8 8 Naked Turns . | . . . . Heaviest Build 90 | 15 30 31 90 Greatest Support 40 | 40 40 40 40 Greatest Overweight (x) 2 | 1 1 . 2 Average Overweight (x) . | . . . 1 Largest Inventory Capacity 25 | 8 15 15 25 Average Capacity 18 | 7 14 15 22 Most Carried 25 | 4 15 15 25 Average Carried 16 | 2 11 14 20 Final Capacity 15 | 8 15 15 5 Final Carried 15 | 4 15 14 2 Class Distribution -------------------- 100% | Mutant Dominant Class ---------------- Mutant | -10/Materials Mutant | -10/Subcaves Mutant | -7/Scraptown Resources | -11 -10 -10 -7 ----------- Run | Yrd Mat Sub Scr Matter Collected 1284 | 306 654 138 186 Remotely . | . . . . Salvage Created 1040 | 111 791 138 . Parts 62 | 6 49 7 . Haulers Intercepted 2 | . 2 . . Recyclers Shooed 2 | . 2 . . Parts Field Recycled . | . . . . Retrieved Matter . | . . . . Parts Self-Destructed 6 | . . 6 . Prevented . | . . . . Kills | -11 -10 -10 -7 ------- Run | Yrd Mat Sub Scr Combat Hostiles Destroyed 16 | . 14 2 . Guns 16 | . 14 2 . Classes Destroyed 10 | 3 4 3 . Worker 1 | 1 . . . Tunneler 2 | 2 . . . Hauler 2 | . 2 . . Recycler 5 | 1 4 . . Watcher 3 | . 3 . . Swarmer 6 | . 6 . . Grunt 8 | . 8 . . Sentry 1 | . . 1 . Artisan 1 | . . 1 . Subdweller 1 | . . 1 . Best Kill Streak 6 | 4 6 1 . Combat Bots Only 3 | . 3 1 . Max Kills in Single Turn 1 | 1 1 1 . Gunslinging . | . . . . Exploded . | . . . . Melee . | . . . . Uniques/NPCs Destroyed . | . . . . Combat | -11 -10 -10 -7 -------- Run | Yrd Mat Sub Scr Hostile Shots Fired 83 | . 67 16 . Missed 16 | . 14 2 . Hits 67 | . 53 14 . Projectile 67 | . 53 14 . Critical Strikes 1 | . . 1 . Damage Taken 939 | . 587 352 . Core 208 | . 91 117 . Absorbed by Shields . | . . . . Core Remaining (%) 100 | 100 . . . Volleys Fired 104 | 6 67 31 . Largest 2 | 2 2 2 . Hottest 70 | 40 70 70 . Shots Fired 194 | 12 133 49 . Gun 181 | 12 133 36 . Cannon . | . . . . Launcher 9 | . . 9 . Special 4 | . . 4 . Kinetic 109 | 12 79 18 . Thermal 76 | . 54 22 . Explosive 9 | . . 9 . Electromagnetic . | . . . . Robot Hit Streak 14 | 5 8 14 . Robot Miss Streak 5 | 2 5 2 . Penetration Max . | . . . . Secondary Targets 3 | . 3 . . Max Gunslinging Chain 1 | . 1 . . Shots Hit Robots 108 | 7 75 26 . Core Hits 49 | 4 38 7 . Critical Kills . | . . . . Critical Parts Destroyed . | . . . . Critical Strikes 6 | . 6 . . Burn 6 | . 6 . . Melee Attacks . | . . . . Impact . | . . . . Slashing . | . . . . Piercing . | . . . . Sneak Attacks . | . . . . Combat Hostiles . | . . . . Follow-up Attacks . | . . . . Damage Inflicted 1463 | 104 1033 326 . Guns 1380 | 101 982 297 . Cannons . | . . . . Explosions 29 | . . 29 . Melee . | . . . . Ramming 54 | 3 51 . . Kinetic 766 | 101 515 150 . Thermal 614 | . 467 147 . Explosive 29 | . . 29 . Electromagnetic . | . . . . Impact . | . . . . Slashing . | . . . . Piercing . | . . . . Highest Corruption . | . . . . Average Corruption . | . . . . Corruption Purged . | . . . . Corruption Blocked . | . . . . Overload Shots . | . . . . Overflow Damage . | . . . . Projectiles . | . . . . Explosions . | . . . . Melee . | . . . . Knockbacks . | . . . . Impact . | . . . . Kinetic . | . . . . Secondary . | . . . . Self-Inflicted Damage 57 | . . 57 . Shots 2 | . . 2 . Rammed 9 | 1 8 . . Targets Rammed 12 | 2 10 . . Kicked . | . . . . Crushed 3 | 1 2 . . Highest Temperature 201 | . 201 . . Average Temperature 41 | . 41 . . Received Heat Transfer 249 | . 240 9 . Siege Activations . | . . . . Martial Activations . | . . . . Shielding Activations . | . . . . Robots Disrupted . | . . . . Combat Hostiles . | . . . . Robots Corrupted . | . . . . Combat Hostiles . | . . . . Parts Fried . | . . . . Impact Corruptions . | . . . . Robots Melted . | . . . . Combat Hostiles . | . . . . Parts Melted 2 | . 2 . . Heat Transferred 2220 | . 1776 444 . Parts Sabotaged . | . . . . Parts Stolen . | . . . . Parts Stripped . | . . . . Power Chain Reactions . | . . . . Alert | -11 -10 -10 -7 ------- Run | Yrd Mat Sub Scr Maximum Alert Level . | . . . . Low Security (%) 100 | 100 100 . . Level 1 . | . . . . Level 2 . | . . . . Level 3 . | . . . . Level 4 . | . . . . Level 5 . | . . . . High Security . | . . . . Max Security . | . . . . Peak Influence 120 | 5 120 . . Initial 3 | . 3 . . Average 34 | 2 35 . . Influence Increases 478 | 20 438 20 . Destroy 0b10 Robot/C 300 | . 280 20 . Destroy 0b10 Robot/NC 65 | 20 45 . . Destroy Leader 70 | . 70 . . Successful Hack 25 | . 25 . . Destroy Structure 3 | . 3 . . Lose Combat Pursuer 15 | . 15 . . Influence Decreases 478 | 15 443 20 . Entered New Map 2 | . 2 . . Time Decay 466 | 15 431 20 . Lost Part 10 | . 10 . . Squads Dispatched 2 | . 2 . . Investigation . | . . . . Extermination . | . . . . Reinforcement 2 | . 2 . . Assault . | . . . . Garrison . | . . . . Intercept . | . . . . Searches Triggered . | . . . . Construction Impeded . | . . . . Haulers Reinforced . | . . . . Active Scanning Responses . | . . . . Cargo Convoy Interrupts . | . . . . Stealth | -11 -10 -10 -7 --------- Run | Yrd Mat Sub Scr Distress Signals . | . . . . Communications Jammed . | . . . . Distress Signals . | . . . . Times Spotted 28 | . 26 2 . Peak Tracking Total 4 | . 4 1 . Tactical Retreats 1 | . 1 . . Traps | -11 -10 -10 -7 ------- Run | Yrd Mat Sub Scr Traps Triggered 2 | . 2 . . Indirectly . | . . . . Trap Hack Attempts . | . . . . Triggered . | . . . . Disarmed . | . . . . Reprogrammed . | . . . . Reused . | . . . . Traps Extracted . | . . . . Installed . | . . . . Triggered . | . . . . Machines | -11 -10 -10 -7 ---------- Run | Yrd Mat Sub Scr Machines Disabled . | . . . . Max in Single Turn . | . . . . Machines Repaired . | . . . . Machines Dismantled . | . . . . Machines Sabotaged . | . . . . Overloaded Fab Kills . | . . . . Hacking | -11 -10 -10 -7 --------- Run | Yrd Mat Sub Scr Machines Accessed 10 | . 9 . 1 Terminals 6 | . 6 . . Fabricators . | . . . . Repair Stations 1 | . 1 . . Recycling Units 2 | . 2 . . Scanalyzers . | . . . . Garrison Access . | . . . . Total Hacks 27 | . 26 . 1 Successful 16 | . 15 . 1 Failed 11 | . 11 . . Catastrophic . | . . . . Database Lockouts . | . . . . Manual 18 | . 18 . . Terminals 21 | . 21 . . Fabricators . | . . . . Repair Stations 2 | . 2 . . Recycling Units 3 | . 3 . . Scanalyzers . | . . . . Garrison Access . | . . . . Terminal Hacks 6 | . 5 . 1 Robot Analysis 5 | . 5 . . Proto ID Catalog 1 | . . . 1 Fabricator Hacks . | . . . . Repair Station Hacks 1 | . 1 . . Scan Component 1 | . 1 . . Recycling Unit Hacks 1 | . 1 . . Retrieve Components 1 | . 1 . . Scanalyzer . | . . . . Garrison Access Hacks . | . . . . Unauthorized Hacks 8 | . 8 . . Terminals 8 | . 8 . . Botnet 2 | . 2 . . Skim 6 | . 6 . . Fabricators . | . . . . Repair Stations . | . . . . Recycling Units . | . . . . Scanalyzers . | . . . . Garrison Access . | . . . . Data Cores Recovered . | . . . . Used . | . . . . Hacking Detections 7 | . 7 . . Full Trace Events . | . . . . Feedback Events . | . . . . Feedback Blocked . | . . . . Robot Schematics Acquired . | . . . . Robots Built . | . . . . Authchips . | . . . . Time . | . . . . Total Robot Build Rating . | . . . . Part Schematics Acquired . | . . . . Parts Built . | . . . . Authchips . | . . . . Time . | . . . . Total Part Build Rating . | . . . . Parts Repaired . | . . . . Time . | . . . . Parts Recycled . | . . . . Recycled Matter . | . . . . Retrieved Matter . | . . . . Retrieved Components 9 | . 9 . . Parts Scanalyzed . | . . . . Part Schematics Acquired . | . . . . Parts Damaged . | . . . . Bothacking | -11 -10 -10 -7 ------------ Run | Yrd Mat Sub Scr Used RIF Installer . | . . . . Robots Hacked . | . . . . Non-combat . | . . . . Combat . | . . . . Robot Hacks Applied . | . . . . Relay Couplers Released . | . . . . Fabnet Peak Effective % . | . . . . Robots Rewired . | . . . . Allies Hacked . | . . . . Hacks Repelled . | . . . . Allies | -11 -10 -10 -7 -------- Run | Yrd Mat Sub Scr Total Allies . | . . . . Largest Group . | . . . . Highest-Rated Group . | . . . . Highest-Rated Ally . | . . . . Total Orders . | . . . . Ally Attacks . | . . . . Total Damage . | . . . . Kills . | . . . . Allies Corrupted . | . . . . Allies Melted . | . . . . Intel | -11 -10 -10 -7 ------- Run | Yrd Mat Sub Scr Active Infowar (turns) 5618 | 25 1890 736 2967 Seismic 5618 | 25 1890 736 2967 Robot Analysis Total 5 | . 5 . . Derelict Logs Recovered 1 | . . 1 . Drone Launches . | . . . . Drone Recoveries . | . . . . Exploration | -11 -10 -10 -7 ------------- Run | Yrd Mat Sub Scr Turns Passed 6120 | 101 1890 736 3393 Spaces Moved 2588 | 46 963 388 1191 Core 7 | 7 . . . Treads 2581 | 39 963 388 1191 Legs . | . . . . Wheels . | . . . . Hover . | . . . . Flight . | . . . . Fastest Speed 50 | 50 160 160 160 Average Speed 216 | 145 160 160 283 Slowest Speed 320 | 160 240 160 320 Overloaded Moves . | . . . . Propulsion Burnouts . | . . . . Robots Hopped . | . . . . Potential Cave-ins . | . . . . Cave-ins Triggered . | . . . . Exploration Rate (%) 51 | 4 99 25 76 Regions Visited 3 Branch Regions 2 Pre-discovered Areas 2 | . . 1 1 Known Exits Taken . | . . . . Unknown Exits Taken 3 | 1 1 1 . Scrap Searched 7 | . . . 7 Spaces Dug 7 | . . 7 . Terrain Destroyed 48 | . . 48 . Melee . | . . . . Projectile . | . . . . AOE 48 | . . 48 . Terrain Rammed . | . . . . Walls Destroyed . | . . . . Machines Disabled . | . . . . Actions | -11 -10 -10 -7 --------- Run | Yrd Mat Sub Scr Total 2905 | 64 1171 453 1217 Wait 128 | . 105 23 . Move 2586 | 46 962 387 1191 Hop . | . . . . Pick Up 32 | 4 12 2 14 Fast Attach 11 | 7 4 . . Attach 3 | . 1 2 . Detach . | . . . . Swap 13 | . 5 7 1 Drop 17 | . 5 1 11 Fire 104 | 6 67 31 . Melee . | . . . . Ram . | . . . . Kick . | . . . . Crush 11 | 1 10 . . Escape Stasis . | . . . . Rewire . | . . . . Trap . | . . . . Miscellaneous . | . . . . Route ------- -11/Scrapyard -10/Materials (discovered 6 exits: [*Mat x3] / [*Min x2] / [*Sub]) -10/Subcaves -7/Scraptown (discovered 1 exit: [*Fac]) History --------- Turn | Location | Event 12 | -11/Scrapyard | Discovered new exit (range 15) 102 | -11/Scrapyard | Entered Materials 305 | -10/Materials | Build established: Mutant 443 | -10/Materials | Discovered new exit (range 3) 735 | -10/Materials | Discovered new exit (range 13) 1212 | -10/Materials | Discovered new exit (range 16) 1254 | -10/Materials | Discovered new exit (range 16) 1531 | -10/Materials | Discovered new exit (range 16) 1979 | -10/Materials | Discovered new exit (range 9) 1992 | -10/Materials | Entered Subcaves 1993 | -10/Subcaves | Approached by a straggling Scientist 2257 | -10/Subcaves | Ambushed by angry Subdweller bent on revenge 2270 | -10/Subcaves | Core integrity fell below 50% 2461 | -10/Subcaves | Core integrity fell below 20% 2667 | -10/Subcaves | Learned location of Storage (-7) 2682 | -10/Subcaves | Scientist uncovered a shortcut to Scraptown 2728 | -10/Subcaves | Entered Scraptown 3388 | -7/Scraptown | Visited UFD Registry 3388 | -7/Scraptown | Registered with UFD as "Scrapmod" 3500 | -7/Scraptown | Visited DA-N13 Charitable Foundation 3529 | -7/Scraptown | Found DCF Scrap (29 items) 3590 | -7/Scraptown | Visited Science Guys 3753 | -7/Scraptown | Visited Curators Association 3830 | -7/Scraptown | Visited Supply Room 3878 | -7/Scraptown | Visited Scrapoid Pod Storage 3907 | -7/Scraptown | Visited Cartography Club 3971 | -7/Scraptown | Visited Research Penetration Think Tank 4048 | -7/Scraptown | Visited Derelict Rescue Squad 4073 | -7/Scraptown | Found DRS Beacon 4141 | -7/Scraptown | Visited Modified Component R&D 5095 | -7/Scraptown | Discovered new exit (range 11) 5364 | -7/Scraptown | Visited Fellowship of the Rings 5441 | -7/Scraptown | Visited Cyclists 5742 | -7/Scraptown | Found Surveybot 17 Chip 6121 | -7/Scraptown | Self-destructed Last Messages --------------- 05695_ Dropped Ion Engine. 05696_ Dropped Arm. Huge Wheel. 05696_ Dropped Med. Laser. 05697_ Dropped Hvy. Assault Rifle. 05715_ The floor rises up to form a wall. 05715_ The wall retracts into the floor. RJ-J5M(x): There sure is a lot of activity around Complex 0b10. This is a good thing because it means lots of new areas to map! It's also a bad thing because not all of these areas are overseen by friendly bots... 05723_ The wall retracts into the floor. 05733_ Acquired Mapping Drone Bay. 05742_ Acquired Surveybot 17 Chip. 05749_ Triggered a sensor switch. 05759_ The floor rises up to form a wall. 05766_ The floor silently rises up to form a wall. 05812_ Triggered a sensor switch. Map ----- +----------------------------------------------------+ | ?????????????????????????????????????????????????? | | ?????????????????????????????????????????????????? | | ?????????????????????????????????????????????????? | | ?????????????????????????????????????????????????? | | ?????????????????????????????????????????????????? | | ?????????????????????????????????????????????????? | | ?????????????????????????????????????????????????? | | ??##########?????????????????????????????????????? | | ??#""""""""#?????????????? ###??????????????????? | | ??#" &&" "#?????????????? # ####???????????????? | | ??#" "#?????????????# # # #???????????????? | | ??#"" ""#????########## # # ##???????????????? | | ??#" "#????#""""""""# # ###?????????????? | | ??#"" ""#????#"" """""# # ####X#?????????????? | | ??#" "#????#" ""# # ## ###?????????????? | | ??#"" ""#????#" ""# # #??#??????????? | | ??# #????# ""# ###### #######???????? | | ??# #????#" ""# # #???????? | | ??# #????# "# # #???????? | | ??###### ###????#### ##### ## ###########???????? | | ######## ########### ##### ## ##????????????????? | | """""""" """"""""""" """"" "" "#???####?????????? | | = "#??""""#?????????? | | !!!&! "#?? "#?????????? | | =]=*|[ "#? "#?????????? | | **@[!!= "## "#?????????? | | [!j![! !"#?????????? | | """"""""""""""""""""""""""]!! "## "#?????????? | | """"""""""""""""""""""""""[ "#? "#?????????? | | ###### ################"" "#??""" #?????????? | | #???? ??????????????#"" "########?????????? | | #???? ??????????????#"" "## [["""?????????? | | #????" "??????????????#"" "## [[!""?????????? | | #????? ?????????????###"" "## !""#????????? | | # " ?????????######## #"" "## !!!#????????? | | ????? p !!!#????????? | | ????? "## #????????? | | # " ? ??????######## #"" "## ""!!#????????? | | #? "? ????????????###"" "##""""!!#????????? | | #????" ""?????????????#"" "######?#?????????? | | #???? ?????????????#"" "####?###??##?????? | | #???? ??????????????#"" "##"###"###"#?????? | | ###### ################"" "## "!" "!" #?????? | | """""""""""""""""""""""""" "## """ """ ###???? | | """""""""""""""""""""""""" "#???? | | "## ""#????? | | "## "=#????? | | "## ""#????? | | ## "#???? | | # """ """ ###???? | +----------------------------------------------------+ Best States ------------- Heat Dissipation 25 Energy Generation 10 Energy Capacity 250 Matter Stores 300 Matter Capacity 300 Sight Range 16 Terrain Scan Density 10 Evasion (%) 40 Recoil Reduction 2 Item Schematics ----------------- None Robot Schematics ------------------ None Fabricated ------------ Nothing Repaired ---------- Nothing Alien Tech Used ----------------- None Achievements -------------- None Challenges ------------ None Game ------ Seed ExoskeletonElectronShielding Manual? 0 Play Time 00:17:35 Cumulative 217.9 hours Start 2025.10.19 @ 11:17:21 End 2025.10.19 @ 13:44:20 Sessions 2 Manual Loads 0 Difficulty Rogue Special Mode None Game No. 124 Rogue 124 Adventurer 0 Explorer 0 Win Type - Total 25 Types 11/1/9/1/0/1/1/1/0/0 Lore% 78 Gallery% 68 Achievement% 73 Wizard Run 0 Options --------- Layout 1 ASCII 0 Keyboard 0 Movement Arrows Keybinds 0 Fullscreen 2 Font 24/Tamsyn Map View 50x35 Zoom Use 0% Tactical HUD 1 Map Filters NONE Filters NONE Steam 1 RUN: bcd94d4e-5d22-408b-9393-d8d52222c88d